[Event "Gibraltar Masters 18th"]
[Site "Gibraltar"]
[Date "2020.01.26"]
[Round "6.33"]
[White "Idani, Pouya"]
[Black "Murzin, Volodar"]
[Result "1-0"]
[ECO "D15"]
[WhiteElo "2577"]
[BlackElo "2442"]
[PlyCount "141"]
[EventDate "2020.01.21"]
[EventType "swiss"]
[EventRounds "10"]
[EventCountry "GGB"]
[SourceTitle "BritBase"]
[Source "John Saunders"]
[SourceDate "2021.06.05"]
[SourceVersion "1"]
[SourceVersionDate "2021.06.05"]
[SourceQuality "1"]
[TimeControl "40/100:0"]

1. d4 {[%emt 1:33:59]} d5 {[%emt 0:00:11]} 2. c4 {[%emt 0:00:05]} c6 {[%emt 0:
00:05]} 3. Nf3 {[%emt 0:00:04]} Nf6 {[%emt 0:00:06]} 4. Nc3 {[%emt 0:00:04]} a6
{[%emt 0:00:08]} 5. c5 {[%emt 0:00:04]} g6 {[%emt 0:00:29]} 6. h3 {[%emt 0:00:
11]} Bg7 {[%emt 0:00:41]} 7. Bf4 {[%emt 0:00:06]} O-O {[%emt 0:02:42]} 8. e3 {
[%emt 0:00:20]} Nfd7 {[%emt 0:07:45]} 9. e4 {[%emt 0:10:13]} dxe4 {[%emt 0:03:
20]} 10. Nxe4 {[%emt 0:00:15]} Nf6 {[%emt 0:00:19]} 11. Nc3 {[%emt 0:05:27]}
Be6 {[%emt 0:01:24]} 12. Be2 {[%emt 0:01:03]} Nbd7 {[%emt 0:02:15]} 13. O-O {
[%emt 0:00:16]} Nd5 {[%emt 0:01:47]} 14. Bg3 {[%emt 0:02:48]} N7f6 {[%emt 0:14:
01]} 15. Be5 {[%emt 0:05:09]} Bh6 {[%emt 0:03:14]} 16. Re1 {[%emt 0:05:42]} Qa5
{[%emt 0:12:49]} 17. Bd3 {[%emt 0:18:08]} Rae8 {[%emt 0:05:26]} 18. a3 {
[%emt 0:02:26]} Qd8 {[%emt 0:02:52]} 19. Bh2 {[%emt 0:03:57]} Qc8 {[%emt 0:03:
03]} 20. Bf1 {[%emt 0:02:56]} Rd8 {[%emt 0:09:57]} 21. Na4 {[%emt 0:05:49]}
Rde8 {[%emt 0:12:36]} 22. Ne5 {[%emt 0:03:08]} Nc7 {[%emt 0:02:57]} 23. Nb6 {
[%emt 0:02:20]} Qd8 {[%emt 0:00:53]} 24. a4 {[%emt 0:00:58]} a5 {[%emt 0:03:10]
} 25. Ra3 {[%emt 0:05:26]} Ncd5 {[%emt 0:01:01]} 26. Rb3 {[%emt 0:05:10]} Nb4 {
[%emt 0:06:29]} 27. Bc4 {[%emt 0:02:00]} Nfd5 {[%emt 0:02:02]} 28. Bxd5 {
[%emt 0:03:21]} Bxd5 {[%emt 0:00:01]} 29. Rg3 {[%emt 0:05:20]} Bg7 {[%emt 0:02:
21]} 30. Nbd7 {[%emt 0:02:42]} Be6 {[%emt 0:01:04]} 31. Nxf8 {[%emt 0:00:12]}
Rxf8 32. Rge3 {[%emt 0:01:53]} Qd5 {[%emt 0:03:18]} 33. Nf3 {[%emt 0:01:48]}
Rd8 {[%emt 0:00:14]} 34. Bc7 {[%emt 0:00:34]} Ra8 35. Bg3 {[%emt 0:07:44]} Rd8
{[%emt 0:01:04]} 36. Bc7 {[%emt 0:00:06]} Ra8 {[%emt 0:00:06]} 37. Qd2 {
[%emt 0:03:26]} Bh6 {[%emt 0:00:21]} 38. Bxa5 {[%emt 0:00:04]} Nc2 {[%emt 0:01:
32]} 39. Qxc2 {[%emt 0:00:25]} Bxe3 {[%emt 0:00:01]} 40. fxe3 {[%emt 0:02:46]}
Rxa5 {[%emt 0:00:01]} 41. b4 {[%emt 0:00:20]} Ra8 {[%emt 0:00:04]} 42. e4 {
[%emt 0:00:15]} Qh5 {[%emt 0:00:22]} 43. Re3 {[%emt 0:03:24]} Qh6 44. Rc3 {
[%emt 0:01:56]} Qf4 {[%emt 0:00:19]} 45. a5 {[%emt 0:00:51]} Rd8 {[%emt 0:00:
06]} 46. Qe2 {[%emt 0:02:04]} f6 {[%emt 0:00:32]} 47. Kf2 {[%emt 0:04:17]} Bf7
{[%emt 0:01:11]} 48. Qe3 {[%emt 0:00:12]} Qc7 49. Rd3 {[%emt 0:00:46]} Qd7 {
[%emt 0:00:14]} 50. Rd2 {[%emt 0:01:53]} Qc7 {[%emt 0:00:55]} 51. Rd1 {[%emt 0:
07:31]} Kg7 {[%emt 0:00:28]} 52. Re1 {[%emt 0:00:43]} Rd7 {[%emt 0:00:43]} 53.
d5 {[%emt 0:03:43]} cxd5 {[%emt 0:00:01]} 54. e5 {[%emt 0:00:06]} Rd8 55. e6 {
[%emt 0:03:19]} d4 {[%emt 0:00:52]} 56. Nxd4 {[%emt 0:00:11]} Be8 {[%emt 0:00:
02]} 57. Rd1 {[%emt 0:02:32]} Rd5 {[%emt 0:00:02]} 58. Rd2 {[%emt 0:02:01]} Rg5
{[%emt 0:00:17]} 59. Kg1 {[%emt 0:04:44]} Rg3 {[%emt 0:02:41]} 60. Qe2 {
[%emt 0:02:44]} Ra3 {[%emt 0:06:10]} 61. Ra2 {[%emt 0:01:09]} Rxa2 {[%emt 0:00:
09]} 62. Qxa2 {[%emt 0:00:07]} Qf4 {[%emt 0:00:04]} 63. Qf2 {[%emt 0:02:30]}
Qe4 {[%emt 0:01:06]} 64. Qd2 {[%emt 0:00:12]} h5 {[%emt 0:00:43]} 65. Qc3 {
[%emt 0:05:02]} Qe5 {[%emt 0:00:37]} 66. b5 {[%emt 0:00:59]} h4 {[%emt 0:00:02]
} 67. a6 {[%emt 0:02:33]} bxa6 {[%emt 0:00:05]} 68. c6 {[%emt 0:00:04]} axb5 {
[%emt 0:00:30]} 69. c7 {[%emt 0:00:11]} b4 {[%emt 0:00:05]} 70. Nf5+ {[%emt 0:
04:08]} Qxf5 {[%emt 0:00:08]} 71. Qc1 {[%emt 0:00:03]} 1-0

[Event "Gibraltar Masters 18th"]
[Site "Gibraltar"]
[Date "2020.01.26"]
[Round "6.34"]
[White "Astaneh Lopez, Alex"]
[Black "Li, Di"]
[Result "1/2-1/2"]
[ECO "D27"]
[WhiteElo "2432"]
[BlackElo "2562"]
[PlyCount "264"]
[EventDate "2020.01.21"]
[EventType "swiss"]
[EventRounds "10"]
[EventCountry "GGB"]
[SourceTitle "BritBase"]
[Source "John Saunders"]
[SourceDate "2021.06.05"]
[SourceVersion "1"]
[SourceVersionDate "2021.06.05"]
[SourceQuality "1"]
[TimeControl "40/100:0"]
[WhiteClock "0:03:20"]
[BlackClock "0:04:15"]

1. d4 {[%emt 0:00:00]} d5 {[%emt 0:00:00]} 2. c4 {[%emt 0:00:00]} dxc4 {
[%emt 0:00:00]} 3. e3 {[%emt 0:00:00]} Nf6 {[%emt 0:00:00]} 4. Bxc4 {[%emt 0:
00:00]} e6 {[%emt 0:00:00]} 5. Nf3 {[%emt 0:00:00]} a6 {[%emt 0:00:00]} 6. O-O
{[%emt 0:00:00]} c5 {[%emt 0:00:00]} 7. dxc5 {[%emt 0:00:00]} Bxc5 {[%emt 0:00:
00]} 8. Qxd8+ {[%emt 0:00:00]} Kxd8 {[%emt 0:00:00]} 9. a3 {[%emt 0:00:00]} Ke7
{[%emt 0:00:00]} 10. b4 {[%emt 0:00:00]} Bd6 {[%emt 0:00:00]} 11. Nc3 {[%emt 0:
00:00]} Nbd7 {[%emt 0:00:00]} 12. Bb2 {[%emt 0:00:00]} b5 {[%emt 0:00:00]} 13.
Be2 {[%emt 0:00:00]} Bb7 {[%emt 0:00:00]} 14. Rfd1 {[%emt 0:00:00]} Rhc8 {
[%emt 0:00:00]} 15. Rd2 {[%emt 0:00:00]} Nb6 {[%emt 0:00:00]} 16. Rad1 {
[%emt 0:00:00]} Bb8 {[%emt 0:00:00]} 17. Nd4 {[%emt 0:00:00]} Be5 {[%emt 0:00:
00]} 18. f4 {[%emt 0:00:00]} Bb8 {[%emt 0:00:00]} 19. Nb3 {[%emt 0:00:00]} Ba7
{[%emt 0:00:00]} 20. Nc5 {[%emt 0:00:00]} Bc6 {[%emt 0:00:00]} 21. a4 {[%emt 0:
00:00]} Nc4 {[%emt 0:00:00]} 22. Bxc4 {[%emt 0:00:00]} bxc4 {[%emt 0:00:00]}
23. Rd4 {[%emt 0:00:00]} Bxc5 {[%emt 0:00:00]} 24. bxc5 {[%emt 0:00:00]} Rab8 {
[%emt 0:00:00]} 25. Bc1 {[%emt 0:00:00]} Rb4 {[%emt 0:00:00]} 26. Bd2 {[%emt 0:
00:00]} Rb2 {[%emt 0:00:00]} 27. e4 {[%emt 0:00:00]} Rcb8 {[%emt 0:00:00]} 28.
Be1 {[%emt 0:00:00]} Rc2 {[%emt 0:00:00]} 29. Rd6 {[%emt 0:00:00]} Bxe4 {
[%emt 0:00:00]} 30. Nxe4 {[%emt 0:00:00]} Nxe4 {[%emt 0:00:00]} 31. Bh4+ {
[%emt 0:00:00]} g5 {[%emt 0:00:00]} 32. Rd7+ {[%emt 0:00:00]} Kf6 {[%emt 0:00:
00]} 33. fxg5+ {[%emt 0:00:00]} Kg6 {[%emt 0:00:00]} 34. Re1 {[%emt 0:00:00]}
Nxc5 {[%emt 0:00:00]} 35. Rc7 {[%emt 0:00:00]} Nd3 {[%emt 0:00:00]} 36. Rf1 {
[%emt 0:00:00]} Kh5 {[%emt 0:00:00]} 37. Bg3 {[%emt 0:00:00]} Rf8 {[%emt 0:00:
56]} 38. h4 {[%emt 0:00:00]} e5 {[%emt 0:00:03]} 39. Kh2 {[%emt 0:00:00]} Kg4 {
[%emt 0:00:00]} 40. Rfxf7 {[%emt 0:00:00]} Rb8 {[%emt 0:00:00]} 41. g6 {
[%emt 0:00:00]} hxg6 {[%emt 0:00:00]} 42. Rc6 {[%emt 0:00:00]} Rg8 {[%emt 0:00:
00]} 43. Rfc7 {[%emt 0:00:00]} Nf4 {[%emt 0:00:00]} 44. Bxf4 {[%emt 0:00:00]}
Kxf4 {[%emt 0:00:00]} 45. Rxa6 {[%emt 0:00:00]} e4 {[%emt 0:00:00]} 46. Re6 {
[%emt 0:00:00]} Rh8 {[%emt 0:00:00]} 47. Rf7+ {[%emt 0:00:00]} Ke3 {[%emt 0:00:
00]} 48. Kg3 {[%emt 0:00:00]} Rc3 {[%emt 0:00:00]} 49. Kg4 {[%emt 0:00:00]} Rd3
{[%emt 0:00:00]} 50. Rc7 {[%emt 0:00:00]} Rd4 {[%emt 0:00:00]} 51. Kg5 {
[%emt 0:00:00]} Kd2 {[%emt 0:00:00]} 52. a5 {[%emt 0:00:00]} e3 {[%emt 0:00:00]
} 53. a6 {[%emt 0:00:00]} c3 {[%emt 0:00:00]} 54. a7 {[%emt 0:00:00]} Ra8 {
[%emt 0:00:00]} 55. g4 {[%emt 0:00:00]} Rad8 {[%emt 0:00:00]} 56. Kh6 {[%emt 0:
00:00]} Ra4 {[%emt 0:00:00]} 57. g5 {[%emt 0:00:00]} Rxh4+ {[%emt 0:00:00]} 58.
Kxg6 {[%emt 0:00:00]} Rhh8 {[%emt 0:00:00]} 59. Kf6 {[%emt 0:02:31]} Rhf8+ {
[%emt 0:00:00]} 60. Kg7 {[%emt 0:00:12]} Rg8+ {[%emt 0:00:00]} 61. Kh6 {
[%emt 0:00:00]} Rh8+ {[%emt 0:00:00]} 62. Kg7 {[%emt 0:00:00]} Rhe8 {[%emt 0:
00:00]} 63. Rxe8 {[%emt 0:00:00]} Rxe8 {[%emt 0:00:00]} 64. Rd7+ {[%emt 0:00:
00]} Kc1 {[%emt 0:00:00]} 65. Kf7 {[%emt 0:00:00]} e2 {[%emt 0:00:00]} 66. Kxe8
{[%emt 0:00:00]} e1=Q+ {[%emt 0:00:00]} 67. Re7 {[%emt 0:00:00]} Qh1 {[%emt 0:
00:00]} 68. g6 {[%emt 0:00:00]} Qd5 {[%emt 0:00:00]} 69. Kf8 {[%emt 0:00:00]}
Qf5+ {[%emt 0:00:00]} 70. Kg7 {[%emt 0:00:00]} Qf3 {[%emt 0:00:00]} 71. Rf7 {
[%emt 0:00:03]} Qd5 {[%emt 0:00:00]} 72. Kh7 {[%emt 0:00:00]} Qh1+ {[%emt 0:00:
00]} 73. Kg8 {[%emt 0:00:00]} c2 {[%emt 0:00:00]} 74. Rf8 {[%emt 0:00:00]} Qd5+
{[%emt 0:00:00]} 75. Kh8 {[%emt 0:00:00]} Qh5+ {[%emt 0:00:00]} 76. Kg7 {
[%emt 0:00:00]} Qe5+ {[%emt 0:00:00]} 77. Kg8 {[%emt 0:00:00]} Qd5+ {[%emt 0:
00:00]} 78. Kh8 {[%emt 0:00:00]} Qh1+ {[%emt 0:00:00]} 79. Kg8 {[%emt 0:00:00]}
Kd2 {[%emt 0:00:00]} 80. a8=Q {[%emt 0:00:00]} Qxa8 {[%emt 0:00:00]} 81. Rxa8 {
[%emt 0:00:43]} c1=Q {[%emt 0:00:00]} 82. g7 {[%emt 0:00:47]} Qc4+ {[%emt 0:00:
00]} 83. Kh8 {[%emt 0:00:00]} Qh4+ {[%emt 0:00:00]} 84. Kg8 {[%emt 0:00:00]}
Qh5 {[%emt 0:00:09]} 85. Ra3 {[%emt 0:00:00]} Qc5 {[%emt 0:01:30]} 86. Kh7 {
[%emt 0:00:00]} Qf5+ {[%emt 0:00:00]} 87. Kh8 {[%emt 0:00:00]} Qf6 {[%emt 0:00:
04]} 88. Ra2+ {[%emt 0:00:00]} Kd3 {[%emt 0:00:03]} 89. Ra3+ {[%emt 0:00:00]}
Kd4 {[%emt 0:00:07]} 90. Ra4+ {[%emt 0:00:00]} Kc5 {[%emt 0:01:14]} 91. Kh7 {
[%emt 0:00:00]} Qf5+ {[%emt 0:00:00]} 92. Kh6 {[%emt 0:00:00]} Qe6+ {[%emt 0:
00:03]} 93. Kh7 {[%emt 0:00:00]} Qh3+ {[%emt 0:00:05]} 94. Kg6 {[%emt 0:00:00]}
Qd3+ {[%emt 0:00:00]} 95. Kh6 {[%emt 0:00:00]} Qd6+ {[%emt 0:00:00]} 96. Kh7 {
[%emt 0:00:00]} Qh2+ {[%emt 0:00:00]} 97. Kg6 {[%emt 0:00:00]} Qc2+ {[%emt 0:
00:00]} 98. Kf6 {[%emt 0:00:00]} Qc3+ {[%emt 0:00:00]} 99. Kg6 {[%emt 0:00:00]}
Qb3 {[%emt 0:00:00]} 100. Kh7 {[%emt 0:00:00]} Qb1+ {[%emt 0:00:00]} 101. Kh6 {
[%emt 0:00:00]} Qh1+ {[%emt 0:00:00]} 102. Kg6 {[%emt 0:00:00]} Qg2+ {[%emt 0:
00:00]} 103. Kh7 {[%emt 0:00:00]} Qh3+ {[%emt 0:00:00]} 104. Kg6 {[%emt 0:00:
00]} Qe6+ {[%emt 0:00:00]} 105. Kh7 {[%emt 0:00:00]} Qf7 {[%emt 0:00:00]} 106.
Ra5+ {[%emt 0:00:00]} Kb6 {[%emt 0:00:00]} 107. Rg5 {[%emt 0:00:00]} Kc7 {
[%emt 0:00:00]} 108. Ra5 {[%emt 0:00:00]} Kb7 {[%emt 0:00:00]} 109. Kh8 {
[%emt 0:00:00]} Qf6 {[%emt 0:00:00]} 110. Kh7 {[%emt 0:00:00]} Qe7 {[%emt 0:00:
00]} 111. Kg6 {[%emt 0:00:06]} Qe8+ {[%emt 0:00:00]} 112. Kh7 {[%emt 0:00:00]}
Qe4+ {[%emt 0:00:00]} 113. Kh6 {[%emt 0:00:00]} Qc4 {[%emt 0:00:00]} 114. Rc5 {
[%emt 0:00:00]} Qg8 {[%emt 0:00:00]} 115. Rc1 {[%emt 0:00:00]} Qe6+ {[%emt 0:
00:00]} 116. Kh7 {[%emt 0:00:00]} Qf5+ {[%emt 0:00:00]} 117. Kh6 {[%emt 0:00:
00]} Qg4 {[%emt 0:00:00]} 118. Kh7 {[%emt 0:00:00]} Qh5+ {[%emt 0:00:00]} 119.
Kg8 {[%emt 0:00:00]} Qg6 {[%emt 0:00:00]} 120. Kf8 {[%emt 0:00:00]} Qf6+ {
[%emt 0:00:00]} 121. Kg8 {[%emt 0:00:00]} Qf5 {[%emt 0:00:25]} 122. Kh8 {
[%emt 0:00:06]} Qe5 {[%emt 0:00:00]} 123. Kh7 {[%emt 0:00:00]} Qe4+ {[%emt 0:
00:00]} 124. Kh8 {[%emt 0:00:00]} Qh4+ {[%emt 0:00:00]} 125. Kg8 {[%emt 0:00:
00]} Kb6 {[%emt 0:00:00]} 126. Kf7 {[%emt 0:00:00]} Qh5+ {[%emt 0:00:00]} 127.
Kf8 {[%emt 0:00:00]} Qh6 {[%emt 0:00:00]} 128. Kf7 {[%emt 0:00:00]} Qf4+ {
[%emt 0:00:00]} 129. Kg6 {[%emt 0:00:00]} Qe4+ {[%emt 0:00:00]} 130. Kf7 {
[%emt 0:00:00]} Qf5+ {[%emt 0:00:00]} 131. Ke7 {[%emt 0:00:00]} Qg6 {[%emt 0:
00:00]} 132. Kf8 {[%emt 0:00:00]} Qf6+ {[%emt 0:00:00]} 1/2-1/2

[Event "Gibraltar Masters 18th"]
[Site "Gibraltar"]
[Date "2020.01.26"]
[Round "6.35"]
[White "Gukesh, Dommaraju"]
[Black "Percivaldi, Martin"]
[Result "1-0"]
[ECO "A11"]
[WhiteElo "2542"]
[BlackElo "2403"]
[PlyCount "75"]
[EventDate "2020.01.21"]
[EventType "swiss"]
[EventRounds "10"]
[EventCountry "GGB"]
[SourceTitle "BritBase"]
[Source "John Saunders"]
[SourceDate "2021.06.05"]
[SourceVersion "1"]
[SourceVersionDate "2021.06.05"]
[SourceQuality "1"]
[TimeControl "40/100:0"]
[WhiteClock "0:03:20"]
[BlackClock "0:04:20"]

1. Nf3 {[%emt 0:00:00]} d5 {[%emt 0:00:00]} 2. c4 {[%emt 0:00:00]} c6 {[%emt 0:
00:00]} 3. e3 {[%emt 0:00:00]} Nf6 {[%emt 0:00:00]} 4. Nc3 {[%emt 0:00:00]} a6
{[%emt 0:00:00]} 5. b3 {[%emt 0:00:00]} Bf5 {[%emt 0:00:00]} 6. Bb2 {[%emt 0:
00:00]} e6 {[%emt 0:00:00]} 7. Nh4 {[%emt 0:00:00]} Bg4 {[%emt 0:00:00]} 8. Qc2
{[%emt 0:00:00]} Nbd7 {[%emt 0:00:00]} 9. h3 {[%emt 0:00:00]} Bh5 {[%emt 0:00:
00]} 10. g4 {[%emt 0:00:00]} Bg6 {[%emt 0:00:00]} 11. Nxg6 {[%emt 0:00:00]}
hxg6 {[%emt 0:00:00]} 12. g5 {[%emt 0:00:00]} Ng8 {[%emt 0:00:00]} 13. f4 {
[%emt 0:00:00]} Ne7 {[%emt 0:00:00]} 14. O-O-O {[%emt 0:00:00]} Nf5 {[%emt 0:
00:00]} 15. Bd3 {[%emt 0:00:00]} Nh4 {[%emt 0:00:00]} 16. Kb1 {[%emt 0:00:00]}
Qa5 {[%emt 0:00:00]} 17. Ne2 {[%emt 0:00:00]} Nc5 {[%emt 0:00:00]} 18. cxd5 {
[%emt 0:00:00]} Nxd3 {[%emt 0:00:00]} 19. Qxd3 {[%emt 0:00:00]} O-O-O {[%emt 0:
00:00]} 20. Qc2 {[%emt 0:00:00]} Rxd5 {[%emt 0:00:00]} 21. e4 {[%emt 0:00:00]}
Rd7 {[%emt 0:00:00]} 22. Rhf1 {[%emt 0:00:00]} Qb5 {[%emt 0:00:00]} 23. d4 {
[%emt 0:00:00]} Qa5 {[%emt 0:00:00]} 24. Nc1 {[%emt 0:00:00]} f6 {[%emt 0:00:
00]} 25. Nd3 {[%emt 0:00:00]} Bd6 {[%emt 0:00:00]} 26. gxf6 {[%emt 0:00:00]}
gxf6 {[%emt 0:00:00]} 27. d5 {[%emt 0:00:00]} exd5 {[%emt 0:00:00]} 28. Bxf6 {
[%emt 0:00:00]} Rhh7 {[%emt 0:00:00]} 29. exd5 {[%emt 0:00:00]} Nf5 {[%emt 0:
00:00]} 30. dxc6 {[%emt 0:00:00]} Rc7 {[%emt 0:00:00]} 31. Ne5 {[%emt 0:00:00]}
Kb8 {[%emt 0:00:00]} 32. Bd8 {[%emt 0:00:00]} Bxe5 {[%emt 0:00:00]} 33. fxe5 {
[%emt 0:00:00]} Qxe5 {[%emt 0:00:00]} 34. Bxc7+ {[%emt 0:00:00]} Rxc7 {[%emt 0:
00:00]} 35. Rfe1 {[%emt 0:00:00]} Qb5 {[%emt 0:00:00]} 36. Rd8+ {[%emt 0:00:00]
} Ka7 {[%emt 0:00:00]} 37. Qf2+ {[%emt 0:00:00]} b6 {[%emt 0:00:00]} 38. Qf4 {
[%emt 0:00:00]} 1-0

[Event "Gibraltar Masters 18th"]
[Site "Gibraltar"]
[Date "2020.01.26"]
[Round "6.36"]
[White "Moroni, Luca Jr"]
[Black "Lombaers, Peter"]
[Result "0-1"]
[ECO "E63"]
[WhiteElo "2532"]
[BlackElo "2383"]
[PlyCount "88"]
[EventDate "2020.01.21"]
[EventType "swiss"]
[EventRounds "10"]
[EventCountry "GGB"]
[SourceTitle "BritBase"]
[Source "John Saunders"]
[SourceDate "2021.06.05"]
[SourceVersion "1"]
[SourceVersionDate "2021.06.05"]
[SourceQuality "1"]
[TimeControl "40/100:0"]
[WhiteClock "0:33:18"]
[BlackClock "0:43:15"]

1. d4 {[%emt 0:00:00]} Nf6 {[%emt 0:00:00]} 2. c4 {[%emt 0:00:00]} g6 {[%emt 0:
00:00]} 3. g3 {[%emt 0:00:00]} Bg7 {[%emt 0:00:00]} 4. Bg2 {[%emt 0:00:00]} O-O
{[%emt 0:00:00]} 5. Nc3 {[%emt 0:00:00]} d6 {[%emt 0:00:00]} 6. Nf3 {[%emt 0:
00:00]} Nc6 {[%emt 0:00:00]} 7. O-O {[%emt 0:00:00]} a6 {[%emt 0:00:00]} 8. b3
{[%emt 0:00:00]} Rb8 {[%emt 0:00:00]} 9. d5 {[%emt 0:00:00]} Na5 {[%emt 0:00:
00]} 10. Bg5 {[%emt 0:00:00]} h6 {[%emt 0:00:00]} 11. Bd2 {[%emt 0:00:00]} c5 {
[%emt 0:00:00]} 12. dxc6 {[%emt 0:00:00]} Nxc6 {[%emt 0:00:00]} 13. Qc1 {
[%emt 0:00:00]} Kh7 {[%emt 0:00:00]} 14. c5 {[%emt 0:00:00]} dxc5 {[%emt 0:00:
00]} 15. Bf4 {[%emt 0:00:00]} Ra8 {[%emt 0:00:00]} 16. Rd1 {[%emt 0:00:00]} Qe8
{[%emt 0:00:00]} 17. Ne5 {[%emt 0:20:53]} Nd4 {[%emt 0:00:00]} 18. Nd3 {
[%emt 0:00:00]} Nd7 {[%emt 0:00:00]} 19. Qd2 {[%emt 0:00:00]} e5 {[%emt 0:00:
00]} 20. Be3 {[%emt 0:00:00]} Ra7 {[%emt 0:00:00]} 21. Ne4 {[%emt 0:00:00]} Qe7
{[%emt 0:00:00]} 22. b4 {[%emt 0:00:00]} b6 {[%emt 0:00:00]} 23. bxc5 {[%emt 0:
00:00]} Nxc5 {[%emt 0:00:00]} 24. Rab1 {[%emt 0:00:00]} Nxe4 {[%emt 0:00:00]}
25. Bxe4 {[%emt 0:00:00]} Rd7 {[%emt 0:00:00]} 26. Bxd4 {[%emt 0:00:00]} Rxd4 {
[%emt 0:00:00]} 27. Qe3 {[%emt 0:00:00]} Rfd8 {[%emt 0:00:00]} 28. Rdc1 {
[%emt 0:00:00]} b5 {[%emt 0:00:00]} 29. h4 {[%emt 0:00:00]} h5 {[%emt 0:00:00]}
30. Rc2 {[%emt 0:00:00]} Be6 {[%emt 0:00:00]} 31. Nc5 {[%emt 0:00:00]} Bc4 {
[%emt 0:00:00]} 32. Nxa6 {[%emt 0:00:00]} Bh6 {[%emt 0:00:00]} 33. Qf3 {
[%emt 0:00:00]} f5 {[%emt 0:00:00]} 34. Bxf5 {[%emt 0:00:00]} Rf8 {[%emt 0:00:
00]} 35. Rxc4 {[%emt 0:00:00]} Rxc4 {[%emt 0:00:00]} 36. Rxb5 {[%emt 0:00:00]}
e4 {[%emt 0:00:00]} 37. Qb3 {[%emt 0:00:00]} Rc1+ {[%emt 0:00:00]} 38. Kg2 {
[%emt 0:00:00]} Qf6 {[%emt 0:00:00]} 39. Nb8 {[%emt 0:00:00]} Rc7 {[%emt 0:00:
00]} 40. Bxe4 {[%emt 0:00:00]} Qxf2+ {[%emt 0:00:00]} 41. Kh3 {[%emt 0:00:00]}
Qxe2 {[%emt 0:00:00]} 42. Bg2 {[%emt 0:00:00]} Rf2 {[%emt 0:00:00]} 43. Rb7 {
[%emt 0:00:00]} Qg4+ {[%emt 0:00:00]} 44. Kh2 {[%emt 0:00:00]} Rxg2+ {[%emt 0:
00:00]} 0-1

[Event "Gibraltar Masters 18th"]
[Site "Gibraltar"]
[Date "2020.01.26"]
[Round "6.37"]
[White "Mendonca, Leon Luke"]
[Black "Beliavsky, Alexander G"]
[Result "1/2-1/2"]
[ECO "D37"]
[WhiteElo "2417"]
[BlackElo "2529"]
[PlyCount "85"]
[EventDate "2020.01.21"]
[EventType "swiss"]
[EventRounds "10"]
[EventCountry "GGB"]
[SourceTitle "BritBase"]
[Source "John Saunders"]
[SourceDate "2021.06.05"]
[SourceVersion "1"]
[SourceVersionDate "2021.06.05"]
[SourceQuality "1"]
[TimeControl "40/100:0"]
[WhiteClock "0:13:43"]
[BlackClock "0:32:07"]

1. d4 {[%emt 0:00:00]} d5 {[%emt 0:00:00]} 2. c4 {[%emt 0:00:00]} e6 {[%emt 0:
00:00]} 3. Nf3 {[%emt 0:00:00]} Nf6 {[%emt 0:00:00]} 4. Nc3 {[%emt 0:00:00]}
Be7 {[%emt 0:00:00]} 5. Bf4 {[%emt 0:00:00]} O-O {[%emt 0:00:00]} 6. e3 {
[%emt 0:00:00]} c5 {[%emt 0:00:00]} 7. dxc5 {[%emt 0:00:00]} Bxc5 {[%emt 0:00:
00]} 8. cxd5 {[%emt 0:00:00]} Nxd5 {[%emt 0:00:00]} 9. Nxd5 {[%emt 0:00:00]}
exd5 {[%emt 0:00:00]} 10. a3 {[%emt 0:00:00]} Nc6 {[%emt 0:00:00]} 11. Bd3 {
[%emt 0:00:00]} h6 {[%emt 0:00:00]} 12. h3 {[%emt 0:00:00]} Qf6 {[%emt 0:00:00]
} 13. b4 {[%emt 0:00:00]} Bb6 {[%emt 0:00:00]} 14. b5 {[%emt 0:00:00]} Re8 {
[%emt 0:00:00]} 15. O-O {[%emt 0:00:00]} Na5 {[%emt 0:00:00]} 16. Bb1 {[%emt 0:
00:00]} d4 {[%emt 0:00:00]} 17. Nxd4 {[%emt 0:00:00]} Bxd4 {[%emt 0:00:00]} 18.
Qxd4 {[%emt 0:00:00]} Qxd4 {[%emt 0:00:00]} 19. exd4 {[%emt 0:00:00]} Nb3 {
[%emt 0:00:00]} 20. Ra2 {[%emt 0:00:00]} Nxd4 {[%emt 0:00:00]} 21. Bd3 {
[%emt 0:00:00]} Bf5 {[%emt 0:00:00]} 22. Bxf5 {[%emt 0:00:00]} Nxf5 {[%emt 0:
00:00]} 23. Rd1 {[%emt 0:00:00]} Re4 {[%emt 0:00:00]} 24. Bg3 {[%emt 0:00:00]}
Rc8 {[%emt 0:00:00]} 25. Rad2 {[%emt 0:00:00]} Nxg3 {[%emt 0:00:00]} 26. Rd8+ {
[%emt 0:00:00]} Rxd8 {[%emt 0:00:00]} 27. Rxd8+ {[%emt 0:00:00]} Kh7 {[%emt 0:
00:00]} 28. fxg3 {[%emt 0:00:00]} Ra4 {[%emt 0:00:00]} 29. Rd7 {[%emt 0:00:00]}
b6 {[%emt 0:00:00]} 30. Rxf7 {[%emt 0:00:00]} Rxa3 {[%emt 0:00:00]} 31. g4 {
[%emt 0:00:00]} Ra5 {[%emt 0:00:00]} 32. Kf2 {[%emt 0:00:00]} Rxb5 {[%emt 0:00:
00]} 33. Rxa7 {[%emt 0:00:00]} Re5 {[%emt 0:00:00]} 34. Rb7 {[%emt 0:00:00]}
Re6 {[%emt 0:00:00]} 35. Kf3 {[%emt 0:00:00]} Kg6 {[%emt 0:00:00]} 36. h4 {
[%emt 0:00:00]} Kf6 {[%emt 0:00:00]} 37. g5+ {[%emt 0:00:00]} hxg5 {[%emt 0:00:
00]} 38. hxg5+ {[%emt 0:00:00]} Kg6 {[%emt 0:00:00]} 39. Kf4 {[%emt 0:00:00]}
Rc6 {[%emt 0:00:00]} 40. Kg4 {[%emt 0:00:00]} Rc4+ {[%emt 0:00:00]} 41. Kf3 {
[%emt 0:00:00]} Rb4 {[%emt 0:00:00]} 42. Kg3 {[%emt 0:00:00]} Rb5 {[%emt 0:00:
00]} 43. Kh3 {[%emt 0:00:00]} 1/2-1/2